[Event "*** Titled Tuesday Blitz"]
[Site "Chess.com"]
[Date "2020.04.07"]
[Round "4"]
[White "CakeinSpace2002"]
[Black "Alex_Terzi"]
[Result "0-1"]
[WhiteElo "2170"]
[BlackElo "2406"]
[TimeControl "180+1"]
[EndTime "13:41:39 PDT"]
[Termination "Alex_Terzi won by resignation"]

1. d4 {[%clk 0:03:00.9]} 1... Nf6 {[%clk 0:02:59.9]} 2. Bf4 {[%clk 0:02:56.3]}
2... g6 {[%clk 0:02:56.2]} 3. Nc3 {[%clk 0:02:52.9]} 3... d5 {[%clk 0:02:55.5]}
4. Qd2 {[%clk 0:02:52.1]} 4... h6 {[%clk 0:02:54.2]} 5. f3 {[%clk 0:02:50.5]}
5... Bg7 {[%clk 0:02:52]} 6. e4 {[%clk 0:02:49]} 6... dxe4 {[%clk 0:02:51.8]} 7.
fxe4 {[%clk 0:02:49.9]} 7... Nc6 {[%clk 0:02:49.2]} 8. O-O-O {[%clk 0:02:48.8]}
8... e5 {[%clk 0:02:39.3]} 9. dxe5 {[%clk 0:02:42.1]} 9... Qxd2+ {[%clk
0:02:38.6]} 10. Rxd2 {[%clk 0:02:39.5]} 10... Nh5 {[%clk 0:02:30.9]} 11. g3
{[%clk 0:02:27.1]} 11... g5 {[%clk 0:02:23.8]} 12. Be3 {[%clk 0:02:20.1]} 12...
Bxe5 {[%clk 0:02:20.7]} 13. Nf3 {[%clk 0:02:14.8]} 13... Bxc3 {[%clk 0:02:18.1]}
14. bxc3 {[%clk 0:02:13.7]} 14... Nf6 {[%clk 0:02:14.9]} 15. Bd3 {[%clk
0:01:41.5]} 15... O-O {[%clk 0:02:08.3]} 16. Rf1 {[%clk 0:01:32.9]} 16... Ng4
{[%clk 0:02:06.2]} 17. Bg1 {[%clk 0:01:31.3]} 17... Nge5 {[%clk 0:01:58.8]} 18.
Nd4 {[%clk 0:01:28.8]} 18... Bh3 {[%clk 0:01:54.6]} 19. Rf6 {[%clk 0:01:19.5]}
19... Kg7 {[%clk 0:01:54.1]} 20. Rff2 {[%clk 0:01:12]} 20... Rad8 {[%clk
0:01:42.9]} 21. Nf5+ {[%clk 0:01:10.8]} 21... Bxf5 {[%clk 0:01:42.1]} 22. Rxf5
{[%clk 0:01:11.7]} 22... f6 {[%clk 0:01:36.6]} 23. Bc5 {[%clk 0:01:06.6]} 23...
Rf7 {[%clk 0:01:33.5]} 24. Bb5 {[%clk 0:01:01.8]} 24... Rxd2 {[%clk 0:01:30]}
25. Kxd2 {[%clk 0:01:01.1]} 25... b6 {[%clk 0:01:25.9]} 26. Bd4 {[%clk
0:00:59.5]} 26... Rd7 {[%clk 0:01:02.9]} 27. Ke3 {[%clk 0:00:52.2]} 27... Rd6
{[%clk 0:01:01.9]} 28. Bxc6 {[%clk 0:00:44.5]} 28... Nxc6 {[%clk 0:00:53]} 29.
e5 {[%clk 0:00:43.1]} 29... fxe5 {[%clk 0:00:44.7]} 30. Rxe5 {[%clk 0:00:42.5]}
30... Kg6 {[%clk 0:00:13.1]} 31. Re8 {[%clk 0:00:39.1]} 31... Na5 {[%clk
0:00:12.9]} 32. Ra8 {[%clk 0:00:35.7]} 32... c5 {[%clk 0:00:11.7]} 33. Bh8
{[%clk 0:00:25.8]} 33... Nc4+ {[%clk 0:00:09.5]} 34. Ke4 {[%clk 0:00:25.7]}
34... Rd7 {[%clk 0:00:09.2]} 35. a4 {[%clk 0:00:23.6]} 35... Na3 {[%clk
0:00:08.1]} 36. Rc8 {[%clk 0:00:18]} 36... Nxc2 {[%clk 0:00:05.2]} 37. a5 {[%clk
0:00:18]} 37... Na3 {[%clk 0:00:04.3]} 38. a6 {[%clk 0:00:17.6]} 38... Nb5
{[%clk 0:00:03.1]} 39. c4 {[%clk 0:00:16.6]} 39... Nd6+ {[%clk 0:00:03.2]} 40.
Kd5 {[%clk 0:00:14]} 40... Nxc8+ {[%clk 0:00:04.1]} 41. Ke6 {[%clk 0:00:14.3]}
41... Rd3 {[%clk 0:00:03.9]} 42. Be5 {[%clk 0:00:12.7]} 42... Re3 {[%clk
0:00:02.4]} 43. Kd5 {[%clk 0:00:12.1]} 43... b5 {[%clk 0:00:02.8]} 44. cxb5
{[%clk 0:00:11.4]} 44... Nb6+ {[%clk 0:00:03.7]} 45. Kd6 {[%clk 0:00:06.1]}
45... Nc4+ {[%clk 0:00:03.3]} 46. Kxc5 {[%clk 0:00:05.6]} 46... Nxe5 {[%clk
0:00:04.1]} 47. b6 {[%clk 0:00:05.6]} 47... axb6+ {[%clk 0:00:05]} 48. Kxb6
{[%clk 0:00:06.3]} 48... Nd7+ {[%clk 0:00:05.3]} 49. Kc7 {[%clk 0:00:05.7]}
49... Nc5 {[%clk 0:00:05.3]} 50. a7 {[%clk 0:00:06.6]} 50... Ra3 {[%clk
0:00:05.4]} 51. Kb6 {[%clk 0:00:06.1]} 51... Nd7+ {[%clk 0:00:05.5]} 52. Kb7
{[%clk 0:00:06]} 52... Rxa7+ {[%clk 0:00:06.1]} 53. Kxa7 {[%clk 0:00:05.7]}
53... Ne5 {[%clk 0:00:07]} 54. Kb7 {[%clk 0:00:06.6]} 54... Nf3 {[%clk
0:00:07.9]} 55. Kc6 {[%clk 0:00:07.5]} 55... Nxh2 {[%clk 0:00:07.8]} 56. Kd5
{[%clk 0:00:08.4]} 56... Nf1 {[%clk 0:00:08.5]} 0-1

[Event "*** Titled Tuesday Blitz"]
[Site "Chess.com"]
[Date "2020.04.07"]
[Round "4"]
[White "Shukh_Nikolay"]
[Black "joshdaruca"]
[Result "0-1"]
[WhiteElo "2551"]
[BlackElo "2768"]
[TimeControl "180+1"]
[EndTime "13:41:41 PDT"]
[Termination "joshdaruca won on time"]

1. e4 {[%clk 0:03:00.9]} 1... c5 {[%clk 0:02:57.1]} 2. Nf3 {[%clk 0:03:00.3]}
2... e6 {[%clk 0:02:57.4]} 3. d4 {[%clk 0:02:57.4]} 3... cxd4 {[%clk 0:02:58.3]}
4. c3 {[%clk 0:02:57.9]} 4... dxc3 {[%clk 0:02:55.2]} 5. Nxc3 {[%clk 0:02:58.4]}
5... Nc6 {[%clk 0:02:55.7]} 6. Bc4 {[%clk 0:02:58.1]} 6... d6 {[%clk 0:02:56.1]}
7. O-O {[%clk 0:02:57.9]} 7... Be7 {[%clk 0:02:56.7]} 8. Qe2 {[%clk 0:02:58.2]}
8... Nf6 {[%clk 0:02:56.9]} 9. Rd1 {[%clk 0:02:58.8]} 9... e5 {[%clk 0:02:57.4]}
10. h3 {[%clk 0:02:57.6]} 10... O-O {[%clk 0:02:56.8]} 11. Bg5 {[%clk
0:02:57.4]} 11... Be6 {[%clk 0:02:56.9]} 12. Bxf6 {[%clk 0:02:50]} 12... Bxf6
{[%clk 0:02:55]} 13. Nd5 {[%clk 0:02:50.5]} 13... Rc8 {[%clk 0:02:37.3]} 14. a3
{[%clk 0:02:47.1]} 14... a6 {[%clk 0:02:26.3]} 15. Rac1 {[%clk 0:02:45.4]} 15...
Nd4 {[%clk 0:02:21.6]} 16. Nxd4 {[%clk 0:02:37.1]} 16... exd4 {[%clk 0:02:22.5]}
17. Ba2 {[%clk 0:02:34.5]} 17... Rxc1 {[%clk 0:02:19.2]} 18. Rxc1 {[%clk
0:02:34.3]} 18... Re8 {[%clk 0:02:11.6]} 19. Qd3 {[%clk 0:02:26.9]} 19... Be5
{[%clk 0:02:03.2]} 20. Rf1 {[%clk 0:02:13.1]} 20... g6 {[%clk 0:01:00]} 21. f4
{[%clk 0:01:10.8]} 21... Bf6 {[%clk 0:00:45.9]} 22. Qf3 {[%clk 0:00:54.7]} 22...
Bd7 {[%clk 0:00:41.4]} 23. e5 {[%clk 0:00:34.8]} 23... dxe5 {[%clk 0:00:37.7]}
24. fxe5 {[%clk 0:00:34.8]} 24... Bxe5 {[%clk 0:00:38.6]} 25. Qxf7+ {[%clk
0:00:32.8]} 25... Kh8 {[%clk 0:00:38.7]} 26. Nf6 {[%clk 0:00:12]} 26... Bxf6
{[%clk 0:00:37.9]} 27. Rxf6 {[%clk 0:00:11.7]} 27... Qe7 {[%clk 0:00:23.8]} 28.
Qxe7 {[%clk 0:00:08.3]} 28... Rxe7 {[%clk 0:00:24.7]} 29. Rd6 {[%clk 0:00:09]}
29... Bc6 {[%clk 0:00:22.7]} 30. Bd5 {[%clk 0:00:07.5]} 30... Bxd5 {[%clk
0:00:18]} 31. Rxd5 {[%clk 0:00:07.3]} 31... Re1+ {[%clk 0:00:15.6]} 32. Kh2
{[%clk 0:00:06.8]} 32... Re2 {[%clk 0:00:15.4]} 33. Rxd4 {[%clk 0:00:06.4]}
33... Rxb2 {[%clk 0:00:14.8]} 34. Rd7 {[%clk 0:00:07]} 34... Rb3 {[%clk
0:00:13.5]} 35. a4 {[%clk 0:00:07]} 35... a5 {[%clk 0:00:13.2]} 36. h4 {[%clk
0:00:06.3]} 36... Rb4 {[%clk 0:00:13.1]} 37. Kh3 {[%clk 0:00:05.9]} 37... b6
{[%clk 0:00:13.2]} 38. Rb7 {[%clk 0:00:05.5]} 38... Kg8 {[%clk 0:00:13.5]} 39.
g4 {[%clk 0:00:04.6]} 39... Rxa4 {[%clk 0:00:13.9]} 40. Rxb6 {[%clk 0:00:03.9]}
40... Ra3+ {[%clk 0:00:13.6]} 41. Kg2 {[%clk 0:00:03.7]} 41... a4 {[%clk
0:00:14.5]} 42. Rb7 {[%clk 0:00:03.6]} 42... Rb3 {[%clk 0:00:14.1]} 43. Ra7
{[%clk 0:00:03.8]} 43... a3 {[%clk 0:00:15]} 44. h5 {[%clk 0:00:03.6]} 44...
gxh5 {[%clk 0:00:14.9]} 45. gxh5 {[%clk 0:00:04]} 45... h6 {[%clk 0:00:15.8]}
46. Kf2 {[%clk 0:00:03.6]} 46... Kf8 {[%clk 0:00:14.6]} 47. Kg2 {[%clk
0:00:03.5]} 47... Ke8 {[%clk 0:00:15]} 48. Kf2 {[%clk 0:00:03.5]} 48... Kd8
{[%clk 0:00:15]} 49. Ra6 {[%clk 0:00:03.6]} 49... Rb2+ {[%clk 0:00:14.3]} 50.
Kg3 {[%clk 0:00:02.7]} 50... a2 {[%clk 0:00:14.7]} 51. Ra7 {[%clk 0:00:02]}
51... Kc8 {[%clk 0:00:14.6]} 52. Kf4 {[%clk 0:00:02.4]} 52... Kb8 {[%clk
0:00:14.8]} 53. Ra3 {[%clk 0:00:02.4]} 53... Kb7 {[%clk 0:00:14.1]} 54. Kf5
{[%clk 0:00:02.9]} 54... Rg2 {[%clk 0:00:14.3]} 55. Kf6 {[%clk 0:00:01.1]} 55...
Kb6 {[%clk 0:00:14.5]} 0-1

[Event "*** Titled Tuesday Blitz"]
[Site "Chess.com"]
[Date "2020.04.07"]
[Round "4"]
[White "gena217"]
[Black "bascheyaro"]
[Result "1-0"]
[WhiteElo "2949"]
[BlackElo "2755"]
[TimeControl "180+1"]
[EndTime "13:41:42 PDT"]
[Termination "gena217 won by resignation"]

1. e4 {[%clk 0:03:00.9]} 1... e6 {[%clk 0:02:59.7]} 2. d4 {[%clk 0:03:00]} 2...
d5 {[%clk 0:03:00.6]} 3. Nd2 {[%clk 0:03:00.5]} 3... c5 {[%clk 0:03:00.5]} 4.
exd5 {[%clk 0:02:59.8]} 4... exd5 {[%clk 0:03:01.4]} 5. Ngf3 {[%clk 0:02:58.1]}
5... Nc6 {[%clk 0:03:01.8]} 6. Bb5 {[%clk 0:02:57.8]} 6... c4 {[%clk 0:03:02.2]}
7. O-O {[%clk 0:02:57]} 7... Bd6 {[%clk 0:03:02.3]} 8. b3 {[%clk 0:02:52.4]}
8... cxb3 {[%clk 0:03:02.5]} 9. Bxc6+ {[%clk 0:02:52.8]} 9... bxc6 {[%clk
0:03:02]} 10. axb3 {[%clk 0:02:53.3]} 10... Ne7 {[%clk 0:03:02.1]} 11. Ba3
{[%clk 0:02:53.9]} 11... Bxa3 {[%clk 0:03:01.3]} 12. Rxa3 {[%clk 0:02:54.8]}
12... O-O {[%clk 0:03:01.6]} 13. Qa1 {[%clk 0:02:53.1]} 13... a6 {[%clk
0:03:01.5]} 14. Re1 {[%clk 0:02:51.1]} 14... Re8 {[%clk 0:02:59]} 15. b4 {[%clk
0:02:36.4]} 15... Nf5 {[%clk 0:02:59]} 16. Nb3 {[%clk 0:02:30.1]} 16... Rb8
{[%clk 0:02:52.7]} 17. c3 {[%clk 0:02:27.6]} 17... Nd6 {[%clk 0:02:52.3]} 18.
Nc5 {[%clk 0:02:26.5]} 18... Nc4 {[%clk 0:02:18.2]} 19. Ra2 {[%clk 0:02:24.4]}
19... Bg4 {[%clk 0:02:17.5]} 20. Ne5 {[%clk 0:02:21.7]} 20... Nxe5 {[%clk
0:02:13.6]} 21. dxe5 {[%clk 0:02:22.6]} 21... Qg5 {[%clk 0:02:10.6]} 22. Nd3
{[%clk 0:02:01.9]} 22... Bf3 {[%clk 0:02:07.9]} 23. g3 {[%clk 0:02:01.6]} 23...
Be4 {[%clk 0:02:06.4]} 24. f4 {[%clk 0:01:59.1]} 24... Qf5 {[%clk 0:02:03.2]}
25. Nc5 {[%clk 0:01:57.2]} 25... f6 {[%clk 0:01:56.8]} 26. Nxe4 {[%clk
0:01:41.3]} 26... dxe4 {[%clk 0:01:56.4]} 27. Rae2 {[%clk 0:01:41.8]} 27... h5
{[%clk 0:01:13.5]} 28. Rxe4 {[%clk 0:01:38.2]} 28... h4 {[%clk 0:01:13.7]} 29.
Qxa6 {[%clk 0:01:32.3]} 29... Qg4 {[%clk 0:00:50]} 30. Qe2 {[%clk 0:01:29.3]}
30... Qh3 {[%clk 0:00:22.6]} 31. Qf3 {[%clk 0:01:23.6]} 31... fxe5 {[%clk
0:00:20.6]} 32. Rxe5 {[%clk 0:00:59.9]} 32... Rxe5 {[%clk 0:00:19.1]} 33. Rxe5
{[%clk 0:00:59.8]} 33... hxg3 {[%clk 0:00:19.4]} 34. Qxg3 {[%clk 0:00:58.5]}
34... Qd7 {[%clk 0:00:19.5]} 35. Qf3 {[%clk 0:00:51.5]} 35... Ra8 {[%clk
0:00:19.3]} 36. Qe2 {[%clk 0:00:43.3]} 36... Ra1+ {[%clk 0:00:18.8]} 37. Kg2
{[%clk 0:00:43.2]} 37... Kf7 {[%clk 0:00:16.1]} 38. Qh5+ {[%clk 0:00:41.6]}
38... Kf8 {[%clk 0:00:15.3]} 39. Qf5+ {[%clk 0:00:39.1]} 39... Qxf5 {[%clk
0:00:14.8]} 40. Rxf5+ {[%clk 0:00:40]} 40... Ke7 {[%clk 0:00:15.7]} 41. Rg5
{[%clk 0:00:39.9]} 41... Ra2+ {[%clk 0:00:11.8]} 42. Kh3 {[%clk 0:00:36.8]}
42... Rc2 {[%clk 0:00:05.3]} 43. Rxg7+ {[%clk 0:00:36.5]} 43... Kf6 {[%clk
0:00:05.8]} 44. Rg3 {[%clk 0:00:36.1]} 44... Kf5 {[%clk 0:00:06.4]} 45. Rf3
{[%clk 0:00:30]} 45... Rc1 {[%clk 0:00:05.9]} 46. Kg2 {[%clk 0:00:19.5]} 46...
Rc2+ {[%clk 0:00:06.1]} 47. Kg1 {[%clk 0:00:18.8]} 47... Rc1+ {[%clk 0:00:06.4]}
48. Kf2 {[%clk 0:00:18.6]} 48... Rc2+ {[%clk 0:00:06.8]} 49. Ke3 {[%clk
0:00:19.1]} 49... Rxh2 {[%clk 0:00:07]} 50. Kd4 {[%clk 0:00:18.8]} 50... Rh5
{[%clk 0:00:05.9]} 51. Rf1 {[%clk 0:00:17.5]} 51... Rh3 {[%clk 0:00:04.3]} 52.
Kc4 {[%clk 0:00:16.9]} 52... Re3 {[%clk 0:00:03.4]} 53. Rd1 {[%clk 0:00:14.1]}
53... Re6 {[%clk 0:00:03.6]} 54. Rd4 {[%clk 0:00:13.9]} 54... Rh6 {[%clk
0:00:02.9]} 55. Kc5 {[%clk 0:00:14.1]} 55... Rg6 {[%clk 0:00:03.2]} 56. c4
{[%clk 0:00:14.4]} 56... Re6 {[%clk 0:00:02.8]} 57. Rd6 {[%clk 0:00:14.1]} 57...
Re8 {[%clk 0:00:03]} 58. Rxc6 {[%clk 0:00:14.3]} 58... Kxf4 {[%clk 0:00:03.9]}
59. b5 {[%clk 0:00:14.9]} 59... Ke5 {[%clk 0:00:04.7]} 60. b6 {[%clk 0:00:15]}
60... Ra8 {[%clk 0:00:05.5]} 61. b7 {[%clk 0:00:13.9]} 1-0

[Event "*** Titled Tuesday Blitz"]
[Site "Chess.com"]
[Date "2020.04.07"]
[Round "4"]
[White "csati17"]
[Black "Lord_Neezy"]
[Result "1/2-1/2"]
[WhiteElo "2476"]
[BlackElo "2319"]
[TimeControl "180+1"]
[EndTime "13:41:45 PDT"]
[Termination "Game drawn by repetition"]

1. c4 {[%clk 0:03:00.9]} 1... e6 {[%clk 0:02:56.4]} 2. Nf3 {[%clk 0:02:59.8]}
2... d5 {[%clk 0:02:56.9]} 3. g3 {[%clk 0:03:00.6]} 3... Nf6 {[%clk 0:02:57.3]}
4. Bg2 {[%clk 0:03:01.2]} 4... Be7 {[%clk 0:02:58]} 5. O-O {[%clk 0:03:01.2]}
5... O-O {[%clk 0:02:58.6]} 6. b3 {[%clk 0:03:01.8]} 6... b6 {[%clk 0:02:54.8]}
7. Bb2 {[%clk 0:03:00.4]} 7... Bb7 {[%clk 0:02:55.4]} 8. e3 {[%clk 0:03:00.4]}
8... c5 {[%clk 0:02:52.9]} 9. d4 {[%clk 0:02:51.2]} 9... Nc6 {[%clk 0:02:52.2]}
10. Nc3 {[%clk 0:02:48.3]} 10... dxc4 {[%clk 0:02:47.2]} 11. bxc4 {[%clk
0:02:45.1]} 11... cxd4 {[%clk 0:02:46.4]} 12. Nxd4 {[%clk 0:02:43.9]} 12... Rc8
{[%clk 0:02:40.2]} 13. Qa4 {[%clk 0:02:40.9]} 13... Qc7 {[%clk 0:02:24.1]} 14.
Ncb5 {[%clk 0:02:24.7]} 14... Qb8 {[%clk 0:02:23.9]} 15. Nxc6 {[%clk 0:02:18.5]}
15... Bxc6 {[%clk 0:02:21.9]} 16. Bxc6 {[%clk 0:02:18.4]} 16... Rxc6 {[%clk
0:02:20.7]} 17. Nxa7 {[%clk 0:02:17.8]} 17... Rc5 {[%clk 0:02:02.3]} 18. Nc6
{[%clk 0:02:12.9]} 18... Rxc6 {[%clk 0:01:25.1]} 19. Qxc6 {[%clk 0:02:10.2]}
19... Rc8 {[%clk 0:01:25.7]} 20. Qb5 {[%clk 0:01:57.7]} 20... Rc5 {[%clk
0:01:22]} 21. Qb3 {[%clk 0:01:57.5]} 21... Ne4 {[%clk 0:01:18.4]} 22. Ba3 {[%clk
0:01:50.9]} 22... Rc7 {[%clk 0:01:04.5]} 23. Bxe7 {[%clk 0:01:48.6]} 23... Rxe7
{[%clk 0:01:05.4]} 24. Rab1 {[%clk 0:01:38.1]} 24... Rb7 {[%clk 0:01:03.1]} 25.
Rfd1 {[%clk 0:01:35.9]} 25... h6 {[%clk 0:00:49.4]} 26. Qd3 {[%clk 0:01:33.9]}
26... Qe5 {[%clk 0:00:37.3]} 27. Rb5 {[%clk 0:01:23.5]} 27... Nc5 {[%clk
0:00:31.8]} 28. Qd8+ {[%clk 0:01:16.5]} 28... Kh7 {[%clk 0:00:32.2]} 29. Qd4
{[%clk 0:01:12.5]} 29... Qh5 {[%clk 0:00:25.2]} 30. Rxc5 {[%clk 0:01:10.5]}
30... bxc5 {[%clk 0:00:17.8]} 31. Qe4+ {[%clk 0:00:55.5]} 31... f5 {[%clk
0:00:16.6]} 32. Qxb7 {[%clk 0:00:55.8]} 32... Qxd1+ {[%clk 0:00:16]} 33. Kg2
{[%clk 0:00:56.7]} 33... Qd3 {[%clk 0:00:14.2]} 34. Qb3 {[%clk 0:00:56.6]} 34...
Qe4+ {[%clk 0:00:14.1]} 35. f3 {[%clk 0:00:57.1]} 35... Qe5 {[%clk 0:00:12.6]}
36. a4 {[%clk 0:00:49.2]} 36... Qd6 {[%clk 0:00:12.9]} 37. Qc2 {[%clk
0:00:48.9]} 37... Qa6 {[%clk 0:00:10.7]} 38. e4 {[%clk 0:00:48.4]} 38... fxe4
{[%clk 0:00:09.1]} 39. Qxe4+ {[%clk 0:00:49.3]} 39... Kg8 {[%clk 0:00:09.2]} 40.
Qc2 {[%clk 0:00:48.5]} 40... Qa5 {[%clk 0:00:08.5]} 41. Qe2 {[%clk 0:00:46.3]}
41... Kf7 {[%clk 0:00:07.7]} 42. Qd1 {[%clk 0:00:44.5]} 42... Qb4 {[%clk
0:00:06.7]} 43. Qd7+ {[%clk 0:00:44.1]} 43... Kf6 {[%clk 0:00:07.4]} 44. Qd8+
{[%clk 0:00:44.4]} 44... Kf7 {[%clk 0:00:07.3]} 45. Qc7+ {[%clk 0:00:44.6]}
45... Kf6 {[%clk 0:00:06.8]} 46. Qf4+ {[%clk 0:00:44.5]} 46... Kg6 {[%clk
0:00:06.1]} 47. Qe4+ {[%clk 0:00:44]} 47... Kf6 {[%clk 0:00:06.7]} 48. Qc2
{[%clk 0:00:44.3]} 48... Kf7 {[%clk 0:00:05.7]} 49. h4 {[%clk 0:00:44.4]} 49...
Kf6 {[%clk 0:00:06.2]} 50. h5 {[%clk 0:00:44.9]} 50... Kf7 {[%clk 0:00:06]} 51.
Qg6+ {[%clk 0:00:44.6]} 51... Kf8 {[%clk 0:00:06.6]} 52. Qxe6 {[%clk 0:00:44.8]}
52... Qxa4 {[%clk 0:00:06.6]} 53. Qd6+ {[%clk 0:00:45.2]} 53... Kf7 {[%clk
0:00:07]} 54. Qxc5 {[%clk 0:00:45.1]} 54... Qc2+ {[%clk 0:00:07.6]} 55. Kh3
{[%clk 0:00:45.5]} 55... Qe2 {[%clk 0:00:05.9]} 56. Qd5+ {[%clk 0:00:45.2]}
56... Kf8 {[%clk 0:00:06.1]} 57. Qf5+ {[%clk 0:00:44.7]} 57... Kg8 {[%clk
0:00:06.4]} 58. Qc8+ {[%clk 0:00:44.7]} 58... Kh7 {[%clk 0:00:06.7]} 59. Qf5+
{[%clk 0:00:44.7]} 59... Kh8 {[%clk 0:00:07.1]} 60. c5 {[%clk 0:00:42.1]} 60...
Qf1+ {[%clk 0:00:06.7]} 61. Kg4 {[%clk 0:00:41.7]} 61... Qc4+ {[%clk 0:00:05.5]}
62. f4 {[%clk 0:00:42]} 62... Qe2+ {[%clk 0:00:05.6]} 63. Kh3 {[%clk 0:00:33.2]}
63... Qf1+ {[%clk 0:00:05.8]} 64. Kh2 {[%clk 0:00:33.6]} 64... Qf2+ {[%clk
0:00:06]} 65. Kh1 {[%clk 0:00:32.9]} 65... Qf1+ {[%clk 0:00:06.3]} 66. Kh2
{[%clk 0:00:33.2]} 66... Qf2+ {[%clk 0:00:06.9]} 67. Kh3 {[%clk 0:00:33.8]}
67... Qf1+ {[%clk 0:00:07.1]} 68. Kh4 {[%clk 0:00:33.9]} 68... Qh1+ {[%clk
0:00:06.3]} 69. Kg4 {[%clk 0:00:34.2]} 69... Qd1+ {[%clk 0:00:06.9]} 70. Kh3
{[%clk 0:00:34.6]} 70... Qf1+ {[%clk 0:00:06.9]} 1/2-1/2

[Event "*** Titled Tuesday Blitz"]
[Site "Chess.com"]
[Date "2020.04.07"]
[Round "4"]
[White "GMNeiksans"]
[Black "NIGWAPO"]
[Result "1/2-1/2"]
[WhiteElo "2836"]
[BlackElo "2592"]
[TimeControl "180+1"]
[EndTime "13:41:48 PDT"]
[Termination "Game drawn - insufficient material"]

1. e4 {[%clk 0:03:00.9]} 1... g5 {[%clk 0:02:59.6]} 2. d4 {[%clk 0:02:59.8]}
2... d5 {[%clk 0:02:59.2]} 3. exd5 {[%clk 0:02:54.3]} 3... Qxd5 {[%clk
0:02:57.9]} 4. Nc3 {[%clk 0:02:54.4]} 4... Qe6+ {[%clk 0:02:57.7]} 5. Be2 {[%clk
0:02:50.4]} 5... h6 {[%clk 0:02:57.2]} 6. Nf3 {[%clk 0:02:46.5]} 6... c6 {[%clk
0:02:57.1]} 7. O-O {[%clk 0:02:46.2]} 7... Bg7 {[%clk 0:02:56.3]} 8. Re1 {[%clk
0:02:46.3]} 8... Qd6 {[%clk 0:02:53.4]} 9. Ne4 {[%clk 0:02:33.8]} 9... Qd5
{[%clk 0:02:51.5]} 10. Bd3 {[%clk 0:02:18.9]} 10... Bg4 {[%clk 0:02:48.7]} 11.
c4 {[%clk 0:02:03]} 11... Qd7 {[%clk 0:02:48.3]} 12. h3 {[%clk 0:01:47]} 12...
Bh5 {[%clk 0:02:46.5]} 13. Ng3 {[%clk 0:01:44.3]} 13... Bxf3 {[%clk 0:02:44.7]}
14. Qxf3 {[%clk 0:01:44]} 14... e6 {[%clk 0:02:42.6]} 15. d5 {[%clk 0:01:41.2]}
15... Na6 {[%clk 0:02:32.8]} 16. Nf5 {[%clk 0:01:30.6]} 16... Bf6 {[%clk
0:02:26.6]} 17. Ng3 {[%clk 0:01:04.2]} 17... Nc7 {[%clk 0:02:20.3]} 18. dxc6
{[%clk 0:01:01.5]} 18... Qxc6 {[%clk 0:02:16.9]} 19. Be4 {[%clk 0:01:00.7]}
19... Qxc4 {[%clk 0:02:16.7]} 20. Bxb7 {[%clk 0:00:59.6]} 20... Rd8 {[%clk
0:02:14.5]} 21. Be3 {[%clk 0:00:54.1]} 21... Nd5 {[%clk 0:02:13.3]} 22. Rac1
{[%clk 0:00:51.6]} 22... Qd3 {[%clk 0:02:10.6]} 23. Rcd1 {[%clk 0:00:44.1]}
23... Qb5 {[%clk 0:02:07.9]} 24. Bxd5 {[%clk 0:00:43.6]} 24... Rxd5 {[%clk
0:02:07.5]} 25. Rxd5 {[%clk 0:00:34]} 25... Qxd5 {[%clk 0:02:07]} 26. Qxd5
{[%clk 0:00:32.1]} 26... exd5 {[%clk 0:02:07]} 27. Bxg5+ {[%clk 0:00:32.3]}
27... Kd7 {[%clk 0:02:06.1]} 28. Be3 {[%clk 0:00:28.7]} 28... Bxb2 {[%clk
0:02:03.6]} 29. Rb1 {[%clk 0:00:28.5]} 29... Be5 {[%clk 0:02:01.3]} 30. Rb7+
{[%clk 0:00:28.2]} 30... Ke6 {[%clk 0:02:00.5]} 31. f4 {[%clk 0:00:26.6]} 31...
Bd6 {[%clk 0:01:53.2]} 32. Bd4 {[%clk 0:00:25.1]} 32... Bxf4 {[%clk 0:01:32.7]}
33. Bxh8 {[%clk 0:00:24.4]} 33... Bxg3 {[%clk 0:01:32.8]} 34. Rxa7 {[%clk
0:00:24]} 34... f6 {[%clk 0:01:32]} 35. Bg7 {[%clk 0:00:23.7]} 35... Be5 {[%clk
0:01:30.3]} 36. Kf1 {[%clk 0:00:23.4]} 36... d4 {[%clk 0:01:28.7]} 37. Ke2
{[%clk 0:00:22.7]} 37... h5 {[%clk 0:01:25.5]} 38. Bf8 {[%clk 0:00:22.2]} 38...
f5 {[%clk 0:01:25.4]} 39. Bb4 {[%clk 0:00:21.9]} 39... Nf6 {[%clk 0:01:25.3]}
40. Ra6+ {[%clk 0:00:20.6]} 40... Kd5 {[%clk 0:01:24.4]} 41. Ra5+ {[%clk
0:00:20.8]} 41... Ke4 {[%clk 0:01:24]} 42. Bd2 {[%clk 0:00:19]} 42... Nd5 {[%clk
0:01:21.9]} 43. a4 {[%clk 0:00:18.5]} 43... d3+ {[%clk 0:01:21.7]} 44. Kd1
{[%clk 0:00:19]} 44... f4 {[%clk 0:01:09.6]} 45. Rb5 {[%clk 0:00:18.7]} 45...
Ne3+ {[%clk 0:01:09.4]} 46. Kc1 {[%clk 0:00:18.1]} 46... Nxg2 {[%clk 0:01:08.6]}
47. Rb4+ {[%clk 0:00:16.5]} 47... Kd5 {[%clk 0:01:06.1]} 48. Rb7 {[%clk
0:00:11.7]} 48... f3 {[%clk 0:01:04.4]} 49. Rf7 {[%clk 0:00:11.4]} 49... Ke4
{[%clk 0:01:04.2]} 50. a5 {[%clk 0:00:11.8]} 50... Nf4 {[%clk 0:01:04.3]} 51.
Be1 {[%clk 0:00:11.8]} 51... Bd4 {[%clk 0:01:02.4]} 52. Re7+ {[%clk 0:00:07.5]}
52... Kf5 {[%clk 0:00:54.8]} 53. a6 {[%clk 0:00:07.5]} 53... f2 {[%clk
0:00:52.4]} 54. Bxf2 {[%clk 0:00:07.5]} 54... Bxf2 {[%clk 0:00:52.8]} 55. Kd2
{[%clk 0:00:06.9]} 55... Bc5 {[%clk 0:00:52]} 56. Rf7+ {[%clk 0:00:06.8]} 56...
Ke4 {[%clk 0:00:51.2]} 57. Rc7 {[%clk 0:00:05.9]} 57... Be3+ {[%clk 0:00:50.9]}
58. Kd1 {[%clk 0:00:05.8]} 58... Nxh3 {[%clk 0:00:50.8]} 59. Re7+ {[%clk
0:00:05.4]} 59... Kf3 {[%clk 0:00:50.2]} 60. Rf7+ {[%clk 0:00:03.7]} 60... Kg3
{[%clk 0:00:41.9]} 61. a7 {[%clk 0:00:04.2]} 61... Bxa7 {[%clk 0:00:35.2]} 62.
Rxa7 {[%clk 0:00:05.1]} 62... Nf4 {[%clk 0:00:34.2]} 63. Kd2 {[%clk 0:00:05.5]}
63... h4 {[%clk 0:00:33.7]} 64. Rg7+ {[%clk 0:00:05.6]} 64... Kf3 {[%clk
0:00:33.4]} 65. Rh7 {[%clk 0:00:06.1]} 65... Kg4 {[%clk 0:00:29]} 66. Rg7+
{[%clk 0:00:06.5]} 66... Kf3 {[%clk 0:00:29.1]} 67. Rh7 {[%clk 0:00:07]} 67...
h3 {[%clk 0:00:29.6]} 68. Rxh3+ {[%clk 0:00:06.9]} 68... Nxh3 {[%clk 0:00:30.2]}
69. Kxd3 {[%clk 0:00:07.8]} 1/2-1/2